bitfinex/quotes_SOLUSD_20230101
["timestamp","ask_amount","ask_price","bid_price","bid_amount"]
[1672575902757,40.0,9.9299,9.9253,75.64]
[1672575902969,40.0,9.9299,9.9233,302.3]
[1672575902970,40.0,9.9299,9.9234,75.66]
[1672575903179,40.0,9.9299,9.9228,302.3]
[1672575903375,40.0,9.9299,9.923,302.3]
[1672575903583,40.0,9.9299,9.9232,302.3]
[1672575903794,40.0,9.9311,9.9233,377.96]
[1672575905486,52.12503713,9.9311,9.9233,377.96]
[1672575905806,40.0,9.9299,9.9233,377.96]
[1672575906003,40.0,9.9299,9.9233,75.66]
[1672575906214,118.23561868,9.9299,9.9227,75.66]
[1672575906595,40.0,9.9297,9.9228,302.3]
[1672575906761,40.0,9.9297,9.923,302.3]
[1672575906976,40.0,9.9295,9.9231,75.66]
[1672575908013,78.23561868,9.9296,9.9227,75.66]
[1672575908223,40.0,9.9295,9.9227,75.66]
[1672575908855,78.23561868,9.9296,9.9227,75.66]
[1672575909082,40.0,9.9295,9.9227,75.66]
[1672575910019,12.12503713,9.9309,9.9229,40.0]
[1672575910223,15.3,9.9351,9.9231,302.3]
[1672575910444,118.23561868,9.9327,9.9234,40.0]
[1672575910637,23.5574,9.9326,9.9237,40.0]
[1672575910850,23.5574,9.9326,9.9239,302.3]
[1672575911133,23.5574,9.9326,9.9241,302.3]
[1672575911280,23.5574,9.9326,9.9244,40.0]
[1672575911484,40.0,9.9311,9.9246,302.3]
[1672575911704,40.0,9.9311,9.9248,302.3]
[1672575911916,40.0,9.9311,9.925,302.3]
[1672575912233,40.0,9.9325,9.9251,377.95]
[1672575913459,40.0,9.9311,9.9251,377.95]
[1672575915565,40.0,9.9314,9.9251,377.95]
[1672575918317,40.0,9.9311,9.9251,377.95]
[1672575920619,40.0,9.9299,9.9251,377.95]
[1672575921020,40.0,9.9311,9.9251,377.95]
[1672575921445,40.0,9.9325,9.9251,377.95]
[1672575921666,12.12503713,9.9327,9.9251,377.95]
[1672575921870,40.0,9.9331,9.9252,40.0]
[1672575922088,40.0,9.9331,9.9253,75.64]
[1672575922285,40.0,9.9311,9.923,40.0]
[1672575922494,40.0,9.9311,9.9231,377.96]
[1672575922704,40.0,9.9311,9.9232,40.0]
[1672575922917,40.0,9.9311,9.9234,302.3]
[1672575923132,40.0,9.9311,9.9237,40.0]
[1672575923362,40.0,9.9311,9.924,40.0]
[1672575923569,40.0,9.9311,9.9241,377.95]
[1672575925142,40.0,9.9311,9.9242,40.0]
[1672575925345,40.0,9.9311,9.9243,75.65]
[1672575925551,40.0,9.9311,9.9242,75.65]
[1672575926492,40.0,9.9311,9.9234,302.3]
[1672575926711,12.12503713,9.9309,9.9236,302.3]
[1672575926918,40.0,9.9311,9.9238,302.3]
[1672575927131,40.0,9.9311,9.924,302.3]
[1672575927356,40.0,9.9311,9.9241,75.65]
[1672575928500,40.0,9.9311,9.9234,302.3]
[1672575928812,40.0,9.9311,9.9236,302.3]
[1672575929010,40.0,9.9311,9.9238,302.3]
[1672575929221,40.0,9.9311,9.924,302.3]
[1672575929430,40.0,9.9311,9.9241,75.65]
[1672575929647,23.2575,9.9325,9.9243,40.0]
[1672575929952,23.2575,9.9325,9.9246,40.0]
[1672575930166,40.0,9.9311,9.9248,302.3]
[1672575930377,40.0,9.9311,9.925,302.3]
[1672575930591,40.0,9.9311,9.9251,75.65]
[1672575931735,40.0,9.9311,9.923,302.3]
[1672575931960,40.0,9.9311,9.9232,302.3]
[1672575932265,40.0,9.9311,9.9235,40.0]
[1672575932481,40.0,9.9311,9.9237,302.3]
[1672575932687,40.0,9.9311,9.924,40.0]
[1672575932882,40.0,9.9311,9.9241,75.65]
[1672575933092,40.0,9.9311,9.9241,40.0]
[1672575933301,40.0,9.9311,9.9242,75.65]
[1672575933531,40.0,9.9311,9.9241,75.65]
[1672575934255,40.0,9.9311,9.9234,40.0]
[1672575934480,40.0,9.9311,9.9236,302.3]
[1672575934682,40.0,9.9311,9.9238,302.3]
[1672575934887,40.0,9.9311,9.9239,75.65]
[1672575935733,74.72571142,9.9307,9.9239,75.65]
[1672575935951,74.72571142,9.9307,9.9229,40.0]
[1672575936158,74.72571142,9.9307,9.923,75.66]
[1672575937086,40.0,9.9299,9.923,75.66]
[1672575937406,40.0,9.9299,9.9228,75.66]
[1672575938157,40.0,9.9299,9.9229,302.3]
[1672575938355,40.0,9.9306,9.9231,40.0]
[1672575938560,40.0,9.9306,9.9232,75.66]
[1672575938776,40.0,9.9306,9.9231,75.66]
[1672575939188,40.0,9.9306,9.9232,40.0]
[1672575939404,40.0,9.9306,9.9233,75.66]
[1672575939616,74.72571142,9.9307,9.9234,40.0]
[1672575939826,40.0,9.9306,9.9235,75.66]
[1672575940458,40.0,9.9306,9.9229,302.3]
[1672575940796,40.0,9.9306,9.923,417.96]
[1672575941103,40.0,9.9306,9.923,377.96]
[1672575941502,40.0,9.9299,9.923,377.96]
[1672575943087,40.0,9.9306,9.9231,40.0]
[1672575943300,40.0,9.9306,9.9232,75.66]
[1672575943726,40.0,9.9306,9.9229,40.0]
[1672575943933,40.0,9.9306,9.9231,40.0]
[1672575944141,40.0,9.9306,9.9232,75.66]
[1672575944342,40.0,9.9306,9.9228,75.66]
[1672575949067,40.0,9.9306,9.9229,40.0]
[1672575949273,40.0,9.9306,9.923,75.66]
[1672575949482,40.0,9.9306,9.9228,75.66]
[1672575949696,40.0,9.9306,9.9229,40.0]
[1672575949914,40.0,9.9306,9.9231,40.0]
[1672575950117,74.72571142,9.9307,9.9233,40.0]
[1672575950335,40.0,9.9306,9.9234,75.66]
[1672575950963,40.0,9.9306,9.923,40.0]
[1672575951184,40.0,9.9306,9.9232,40.0]
[1672575951392,40.0,9.9306,9.9233,75.66]
[1672575951610,40.0,9.9306,9.9234,40.0]
[1672575951803,40.0,9.9306,9.9235,75.66]
[1672575952018,74.72571142,9.9307,9.9235,75.66]
[1672575952226,74.72571142,9.9307,9.9229,75.66]
[1672575952556,40.0,9.9299,9.9229,75.66]
[1672575954530,12.12503713,9.9298,9.9229,75.66]
[1672575954740,87.37741105,9.9298,9.9228,24.9433]
[1672575955076,40.0,9.9296,9.9228,24.9433]
[1672575955284,40.0,9.9294,9.9228,24.9433]
[1672575955598,75.25237392,9.9293,9.9228,24.9433]
[1672575955788,40.0,9.9292,9.9228,24.9433]
[1672575956001,176.82045985,9.9292,9.9228,24.9433]
[1672575956212,40.0,9.929,9.9228,24.9433]
[1672575956753,40.0,9.9288,9.9228,24.9433]
[1672575957279,40.0,9.9286,9.9228,24.9433]
[1672575957687,40.0,9.9284,9.9228,24.9433]
[1672575958221,40.0,9.9282,9.9228,24.9433]
[1672575958632,40.0,9.928,9.9228,24.9433]
[1672575958957,87.37741105,9.9279,9.9228,24.9433]
[1672575959176,40.0,9.9278,9.9228,24.9433]
[1672575959381,127.37741105,9.9278,9.9228,24.9433]
[1672575959588,40.0,9.9276,9.9228,24.9433]
[1672575959993,40.0,9.9274,9.9228,24.9433]
[1672575960417,87.37741105,9.9273,9.9228,24.9433]
[1672575960633,40.0,9.9272,9.9228,24.9433]
[1672575960852,127.37741105,9.9272,9.9228,24.9433]
[1672575961070,40.0,9.927,9.9228,24.9433]
[1672575961481,115.25237392,9.927,9.9228,24.9433]
[1672575961896,12.12503713,9.9269,9.9228,24.9433]
[1672575962311,40.0,9.9268,9.9228,24.9433]
[1672575962952,12.12503713,9.9267,9.9228,24.9433]
[1672575963783,40.0,9.9266,9.9228,24.9433]
[1672575964222,12.12503713,9.9265,9.9228,24.9433]
[1672575966519,40.0,9.9264,9.9228,24.9433]
[1672575966725,12.12503713,9.9265,9.9228,24.9433]
[1672575966945,12.12503713,9.9264,9.9228,24.9433]
[1672575969060,40.0,9.9262,9.9228,24.9433]
[1672575969582,40.0,9.926,9.9228,24.9433]
[1672575969989,12.12503713,9.9259,9.9228,24.9433]
[1672575970418,12.12503713,9.9259,9.9188,75.69]
[1672575970630,12.12503713,9.9259,9.9189,22.53]
[1672575970834,12.12503713,9.9259,9.919,75.69]
[1672575971245,12.12503713,9.9259,9.9191,22.53]
[1672575971456,12.12503713,9.9259,9.9192,75.69]
[1672575971887,12.12503713,9.9259,9.9193,23.7857]
[1672575972106,12.12503713,9.9259,9.9194,75.69]
[1672575972741,12.12503713,9.9259,9.9195,23.7857]
[1672575972943,12.12503713,9.9259,9.9196,75.69]
[1672575973374,12.12503713,9.9259,9.9197,23.7857]
[1672575973581,12.12503713,9.9259,9.9198,75.69]
[1672575974000,12.12503713,9.9259,9.9199,23.7857]
[1672575974208,12.12503713,9.9259,9.92,75.68]
[1672575974642,12.12503713,9.9259,9.9201,23.7857]
[1672575974839,12.12503713,9.9259,9.9202,75.68]
[1672575975257,12.12503713,9.9259,9.9202,99.7236]
[1672575975678,62.05416687,9.9259,9.9202,24.0436]
[1672575976004,62.05416687,9.9259,9.9186,75.69]
[1672575976005,126.89133011,9.9258,9.9186,75.69]
[1672575976213,40.0,9.9256,9.9185,354.08377077]
[1672575976422,20.0,9.9255,9.9185,354.08377077]
[1672575976635,204.04923377,9.9255,9.9185,354.08377077]
[1672575976946,124.69542272,9.9255,9.9186,115.69]
[1672575977146,67.22877392,9.9285,9.9186,115.69]
[1672575977353,114.76629298,9.9279,9.9188,40.0]
[1672575977559,114.76629298,9.9279,9.919,40.0]
[1672575977781,114.76629298,9.9279,9.9191,75.69]
[1672575977992,114.76629298,9.9279,9.9192,40.0]
[1672575978204,114.76629298,9.9279,9.9193,75.69]
[1672575978833,114.76629298,9.9279,9.9193,100.064]
[1672575983136,52.12503713,9.9266,9.9193,100.064]
[1672575983363,126.89133011,9.9266,9.9193,100.064]
[1672575984204,114.76629298,9.9266,9.9193,100.064]
[1672575986648,126.89133011,9.9266,9.9193,100.064]
[1672575987688,194.12010403,9.9266,9.9193,100.064]
[1672575990119,181.9950669,9.9266,9.9193,100.064]
[1672575990834,12.12503713,9.9265,9.9193,100.064]
[1672575991252,40.0,9.9263,9.9193,100.064]
[1672575991669,107.22877392,9.9263,9.9193,100.064]
[1672575992102,12.12503713,9.9262,9.9193,24.374]
[1672575992512,40.0,9.926,9.9194,75.69]
[1672575992941,40.0,9.9258,9.9194,75.69]
[1672575994643,154.12010403,9.9259,9.9194,75.69]
[1672575995061,141.9950669,9.9259,9.9194,75.69]
[1672575995255,15.3,9.9349,9.9195,342.3]
[1672575995471,107.22877392,9.929,9.9198,40.0]
[1672575995680,40.0,9.9289,9.9199,377.98]
[1672575995890,40.0,9.9289,9.92,40.0]
[1672575996108,40.0,9.9289,9.9201,75.68]
[1672575996329,12.12503713,9.9278,9.92,75.68]
[1672575996854,12.12503713,9.9278,9.9201,40.0]
[1672575997062,12.12503713,9.9278,9.9203,40.0]
[1672575997263,141.9950669,9.927,9.9204,75.68]
[1672575998105,67.22877392,9.9269,9.9202,75.68]
[1672575998427,114.76629298,9.9268,9.9202,75.68]
[1672575998851,141.9950669,9.9267,9.9202,75.68]
[1672575999275,141.9950669,9.9266,9.9202,75.68]
[1672575999685,74.76629298,9.9265,9.9202,75.68]
[1672575999894,74.76629298,9.9265,9.9203,40.0]
[1672576000102,74.76629298,9.9265,9.9204,75.68]
[1672576000637,74.76629298,9.9265,9.9202,75.68]
[1672576002206,40.0,9.9264,9.9202,75.68]
[1672576002413,74.76629298,9.9265,9.9202,75.68]
[1672576004201,40.0,9.9264,9.9202,75.68]
[1672576004412,107.22877392,9.9264,9.9202,75.68]
[1672576004747,40.0,9.9262,9.9202,75.68]
[1672576005152,141.9950669,9.9261,9.9202,75.68]
[1672576006848,141.9950669,9.9261,9.9201,24.0042]
[1672576007998,40.0,9.926,9.9201,24.0042]
[1672576011559,40.0,9.9258,9.9201,24.0042]
[1672576011985,40.0,9.9256,9.9201,24.0042]
[1672576012407,141.9950669,9.9255,9.9201,24.0042]
[1672576012733,107.22877392,9.9254,9.9201,24.0042]
[1672576014504,67.22877392,9.9254,9.9201,24.0042]
[1672576017762,40.0,9.9253,9.9201,24.0042]
[1672576019237,67.22877392,9.9254,9.9201,24.0042]
[1672576020082,40.0,9.9253,9.9201,24.0042]
[1672576022402,107.22877392,9.9254,9.9201,24.0042]
[1672576022719,40.0,9.9253,9.9201,24.0042]
[1672576023672,169.43010403,9.9252,9.9184,353.82377077]
[1672576023892,40.0,9.9251,9.9184,353.82377077]
[1672576024095,40.0,9.9249,9.9184,353.82377077]
[1672576024407,40.0,9.9247,9.9184,353.82377077]
[1672576024605,40.0,9.9245,9.9184,353.82377077]
[1672576024813,20.0,9.9244,9.9184,353.82377077]
[1672576025030,40.0,9.9243,9.9184,353.82377077]
[1672576025355,40.0,9.9241,9.9184,353.82377077]
[1672576025545,40.0,9.9239,9.9184,353.82377077]
[1672576025760,20.0,9.9238,9.9184,353.82377077]
[1672576025985,40.0,9.9237,9.9184,353.82377077]
[1672576026200,144.34812046,9.9238,9.9185,40.0]
[1672576026393,69.58182748,9.9238,9.9186,427.47647077]
[1672576026603,69.58182748,9.9238,9.9187,40.0]
[1672576026813,69.58182748,9.9238,9.9188,75.69]
[1672576027234,69.58182748,9.9238,9.9152,342.3]
[1672576027454,69.58182748,9.9238,9.9155,40.0]
[1672576027653,69.58182748,9.9238,9.9158,40.0]
[1672576027864,69.58182748,9.9238,9.9161,40.0]
[1672576028073,69.58182748,9.9238,9.9163,302.3]
[1672576028389,69.58182748,9.9238,9.9166,40.0]
[1672576028607,69.58182748,9.9238,9.9168,302.3]
[1672576028823,69.58182748,9.9238,9.9169,95.71]
[1672576030503,69.58182748,9.9238,9.917,40.0]
[1672576030713,69.58182748,9.9238,9.9172,40.0]
[1672576030923,69.58182748,9.9238,9.9173,95.7]
[1672576031133,40.0,9.926,9.9173,95.7]
[1672576031346,40.0,9.926,9.9174,23.0662]
[1672576031556,40.0,9.926,9.9175,75.7]
[1672576031745,40.0,9.926,9.9176,20.0]
[1672576031960,40.0,9.926,9.9177,75.7]
[1672576032712,40.0,9.926,9.9178,23.0662]
[1672576032921,109.58182748,9.9254,9.9179,75.7]
[1672576033337,40.0,9.9252,9.918,22.9495582]
[1672576033654,140.00542272,9.9251,9.9154,302.3]
[1672576033845,74.76629298,9.9251,9.9155,40.0]
[1672576034062,74.76629298,9.9251,9.9158,40.0]
[1672576034270,74.76629298,9.9251,9.916,302.3]
[1672576034494,74.76629298,9.9251,9.9162,302.3]
[1672576034708,40.0,9.925,9.9165,40.0]
[1672576034900,40.0,9.925,9.9168,40.0]
[1672576035110,40.0,9.925,9.917,302.3]
[1672576035329,40.0,9.925,9.9173,40.0]
[1672576035541,40.0,9.925,9.9176,40.0]
[1672576035757,40.0,9.925,9.9178,302.3]
[1672576035971,74.76629298,9.9251,9.9179,75.7]
[1672576036371,74.76629298,9.9251,9.918,40.0]
[1672576036584,74.76629298,9.9251,9.9181,75.7]
[1672576037427,74.76629298,9.9251,9.9178,342.3]
[1672576037635,74.76629298,9.9251,9.918,40.0]
[1672576037857,74.76629298,9.9251,9.9181,75.7]
[1672576038273,74.76629298,9.9251,9.9182,302.3]
[1672576038487,74.76629298,9.9251,9.9184,302.3]
[1672576038694,74.76629298,9.9251,9.9186,302.3]
[1672576038905,74.76629298,9.9251,9.9188,302.3]
[1672576039121,74.76629298,9.9251,9.9189,75.69]
[1672576040172,74.76629298,9.9251,9.9185,302.3]
[1672576040364,74.76629298,9.9251,9.9188,40.0]
[1672576040578,15.31,9.9287,9.9191,40.0]
[1672576040803,74.76629298,9.9286,9.9193,302.3]
[1672576041010,114.76629298,9.928,9.9196,40.0]
[1672576041208,114.76629298,9.928,9.9199,40.0]
[1672576041419,40.0,9.9278,9.92,75.68]
[1672576041641,40.0,9.9278,9.9201,40.0]
[1672576041850,147.6230854,9.9277,9.9203,40.0]
[1672576042260,147.6230854,9.9276,9.9203,40.0]
[1672576042680,72.85679242,9.9275,9.9203,62.5721]
[1672576043319,72.85679242,9.9275,9.9203,22.5721]
[1672576043536,40.0,9.9274,9.9203,22.5721]
[1672576043972,40.0,9.9272,9.9203,22.5721]
[1672576044396,112.85679242,9.9272,9.9203,22.5721]
[1672576045336,72.85679242,9.9272,9.9203,22.5721]
[1672576047743,40.0,9.9271,9.9203,22.5721]
[1672576048158,40.0,9.9269,9.9203,22.5721]
[1672576048584,112.85679242,9.9269,9.9203,22.5721]
[1672576051314,40.0,9.9268,9.9203,22.5721]
[1672576051745,15.31,9.9267,9.9203,22.5721]
[1672576052067,40.0,9.9268,9.9203,22.5721]
[1672576056362,112.85679242,9.9268,9.9203,22.5721]
[1672576062266,40.0,9.9266,9.9203,22.5721]
[1672576066383,112.85679242,9.9266,9.9203,22.5721]
[1672576070269,15.31,9.9265,9.9203,22.5721]
[1672576070494,112.85679242,9.9266,9.9203,22.5721]
[1672576072689,72.85679242,9.9266,9.9203,22.5721]
[1672576074254,40.0,9.9265,9.9203,22.5721]
[1672576077204,148.4244421,9.9264,9.9203,22.5721]
[1672576077408,148.4244421,9.9264,9.9131,75.74]
[1672576077409,20.0,9.9263,9.9134,302.3]
[1672576077622,40.0,9.9261,9.9136,302.3]
[1672576077844,35.3,9.926,9.9116,75.75]
[1672576078040,285.4600421,9.926,9.9118,302.3]
[1672576078244,71.04829298,9.9259,9.912,302.3]
[1672576078472,35.3,9.9258,9.9122,302.3]
[1672576078677,40.0,9.9257,9.9124,302.3]
[1672576078890,40.0,9.9255,9.9126,302.3]
[1672576079097,35.3,9.9254,9.9127,659.86147077]
[1672576079302,40.0,9.9253,9.9128,281.82147077]
[1672576079531,40.0,9.9253,9.9129,75.74]
[1672576079532,40.0,9.9251,9.9129,75.74]
[1672576079741,35.31,9.925,9.913,281.82147077]
[1672576079948,40.0,9.9249,9.9131,75.74]
[1672576080268,85.23912974,9.9248,9.9132,281.82147077]
[1672576080468,40.0,9.9247,9.9133,75.73]
[1672576080679,40.0,9.9245,9.9134,281.82147077]
[1672576080885,35.31,9.9244,9.9135,75.73]
[1672576081210,40.0,9.9243,9.9136,281.82147077]
[1672576081537,40.0,9.9241,9.9137,75.73]
[1672576081846,40.0,9.9239,9.9138,280.90147077]
[1672576082037,40.0,9.9237,9.9139,75.73]
[1672576082248,40.0,9.9235,9.914,280.90147077]
[1672576082458,20.0,9.9234,9.9141,75.73]
[1672576082672,40.0,9.9233,9.9142,280.90147077]
[1672576082902,20.0,9.9232,9.9143,75.73]
[1672576083094,40.0,9.9231,9.9144,280.90147077]
[1672576083301,40.0,9.9229,9.9145,75.73]
[1672576083523,40.0,9.9227,9.9146,228.64157077]
[1672576083737,20.0,9.9226,9.9147,75.72]
[1672576083948,40.0,9.9225,9.9148,228.64157077]
[1672576084158,40.0,9.9223,9.9149,75.72]
[1672576084471,40.0,9.9221,9.915,175.46367077]
[1672576084662,20.0,9.922,9.9151,75.72]
[1672576084878,40.0,9.9219,9.9152,122.68577077]
[1672576085101,40.0,9.9217,9.9153,75.72]
[1672576085300,40.0,9.9217,9.9154,122.68577077]
[1672576085516,40.0,9.9217,9.9155,75.72]
[1672576085725,40.0,9.9215,9.9156,122.68577077]
[1672576086045,40.0,9.9213,9.9157,75.72]
[1672576086242,40.0,9.9213,9.9158,122.02577077]
[1672576086459,40.0,9.9211,9.9159,75.72]
[1672576086667,40.0,9.9211,9.916,122.02577077]
[1672576086996,112.85679242,9.9211,9.9161,75.71]
[1672576087207,112.85679242,9.9211,9.9162,122.02577077]
[1672576087514,112.85679242,9.9211,9.9163,75.71]
[1672576087729,112.85679242,9.9211,9.9164,122.02577077]
[1672576087920,112.85679242,9.9211,9.9165,75.71]
[1672576088130,112.85679242,9.9211,9.9166,121.45577077]
[1672576088341,112.85679242,9.9211,9.9167,75.71]
[1672576088562,112.85679242,9.9211,9.9168,121.45577077]
[1672576092667,40.0,9.9209,9.9168,121.45577077]
[1672576093078,40.0,9.9207,9.9168,121.45577077]
[1672576093616,40.0,9.9205,9.9168,121.45577077]
[1672576094019,40.0,9.9203,9.9168,121.45577077]
[1672576094562,40.0,9.9201,9.9168,121.45577077]
[1672576097001,112.85679242,9.9201,9.9168,121.45577077]
[1672576099106,112.85679242,9.9201,9.9125,75.74]
[1672576099302,112.85679242,9.9201,9.9121,23.8742]
[1672576099513,112.85679242,9.9201,9.9123,40.0]
[1672576099720,112.85679242,9.9201,9.9125,40.0]
[1672576099931,112.85679242,9.9201,9.9126,75.74]
[1672576100681,112.85679242,9.9201,9.9123,75.74]
[1672576101085,112.85679242,9.9201,9.9124,40.0]
[1672576101417,112.85679242,9.9201,9.9126,40.0]
[1672576101606,72.85679242,9.9201,9.9128,40.0]
[1672576101813,72.85679242,9.9201,9.9129,75.74]
[1672576102042,72.85679242,9.9201,9.913,40.0]
[1672576102241,72.85679242,9.9201,9.9132,40.0]
[1672576102452,72.85679242,9.9201,9.9133,75.73]
[1672576102661,72.85679242,9.9201,9.9134,40.0]
[1672576102873,72.85679242,9.9201,9.9136,40.0]
[1672576103085,72.85679242,9.9201,9.9138,40.0]
[1672576103294,72.85679242,9.9201,9.9139,75.73]
[1672576104143,72.85679242,9.9201,9.9136,40.0]
[1672576104341,72.85679242,9.9201,9.9137,75.73]
[1672576104567,72.85679242,9.9201,9.9138,40.0]
[1672576104776,72.85679242,9.9201,9.914,40.0]
[1672576104984,72.85679242,9.9201,9.9142,40.0]
[1672576105193,72.85679242,9.9201,9.9143,75.73]
[1672576105415,72.85679242,9.9201,9.9144,40.0]
[1672576105606,72.85679242,9.9201,9.9146,342.3]
[1672576105815,108.1065,9.921,9.9148,302.3]
[1672576106030,15.3,9.9299,9.9146,40.0]
[1672576106031,15.3,9.9299,9.915,302.3]
[1672576106240,40.0,9.9298,9.9153,40.0]
[1672576106460,40.0,9.9298,9.9155,302.3]
[1672576106461,15.3,9.9297,9.9155,302.3]
[1672576106669,15.3,9.9297,9.9158,40.0]
[1672576106882,15.3,9.9297,9.9161,40.0]
[1672576107086,15.3,9.9297,9.9163,302.3]
[1672576107087,40.0,9.9296,9.9163,302.3]
[1672576107303,15.3,9.9295,9.9166,40.0]
[1672576107622,40.0,9.9294,9.9169,40.0]
[1672576107832,40.0,9.9292,9.9172,40.0]
[1672576108027,15.3,9.9291,9.9174,302.3]
[1672576108238,40.0,9.929,9.9176,342.3]
[1672576108456,15.3,9.9289,9.9178,40.0]
[1672576108788,15.3,9.9289,9.918,40.0]
[1672576108789,52.13701938,9.9288,9.918,40.0]
[1672576109091,40.0,9.9286,9.9181,75.7]
[1672576109291,15.31,9.9285,9.9181,75.7]
[1672576109498,40.0,9.9284,9.9183,40.0]
[1672576109716,15.31,9.9283,9.9184,75.7]
[1672576109926,161.64370478,9.9283,9.9184,75.7]
[1672576110129,40.0,9.9282,9.9185,46.8226]
[1672576110341,15.31,9.9281,9.9186,75.69]
[1672576110552,40.0,9.928,9.9186,75.69]
[1672576110775,15.31,9.9279,9.9187,46.4809]
[1672576111090,40.0,9.9278,9.9187,46.4809]
[1672576111289,15.31,9.9277,9.9188,99.5574]
[1672576111495,40.0,9.9276,9.9188,99.5574]
[1672576111715,15.31,9.9275,9.9188,99.5574]
[1672576112040,40.0,9.9274,9.9189,23.8674]
[1672576112347,15.31,9.9273,9.9189,23.8674]
[1672576112542,40.0,9.9272,9.919,99.5574]
[1672576112758,103.14839242,9.9272,9.919,23.8674]
[1672576112966,40.0,9.927,9.919,23.8674]
[1672576113168,40.0,9.927,9.9191,23.8674]
[1672576113381,40.0,9.9268,9.9191,23.8674]
[1672576113607,55.31,9.9268,9.9191,23.8674]
[1672576113819,55.31,9.9268,9.9192,24.734]
[1672576113820,40.0,9.9266,9.9192,24.734]
[1672576114032,15.31,9.9265,9.9192,24.734]
[1672576114234,40.0,9.9264,9.9192,24.734]
[1672576114551,174.1966854,9.9264,9.9192,24.734]
[1672576114764,40.0,9.9262,9.9192,24.734]
[1672576115170,40.0,9.926,9.9192,24.734]
[1672576115709,40.0,9.9258,9.9192,24.734]
[1672576115918,71.04829298,9.9259,9.9192,24.734]
[1672576116112,71.04829298,9.9257,9.9192,24.734]
[1672576116319,63.14839242,9.926,9.9194,302.3]
[1672576116528,49.92912974,9.928,9.9196,302.3]
[1672576116752,71.04829298,9.9298,9.9198,302.3]
[1672576117059,71.04829298,9.9298,9.92,302.3]
[1672576117266,71.04829298,9.9298,9.9202,302.3]
[1672576117475,63.14839242,9.9317,9.9204,302.3]
[1672576117703,63.14839242,9.9317,9.9206,302.3]
[1672576118021,15.3,9.9334,9.9208,302.3]
[1672576118223,15.3,9.9334,9.9201,40.0]
[1672576118224,47.8404,9.9316,9.921,342.3]
[1672576118544,47.8404,9.9316,9.9212,302.3]
[1672576118764,159.8294,9.9315,9.9214,302.3]
[1672576118970,159.8294,9.9315,9.9217,40.0]
[1672576119162,40.0,9.9314,9.9219,302.3]
[1672576119373,40.0,9.9314,9.9218,75.67]
[1672576119374,176.4953,9.9314,9.9221,302.3]
[1672576119597,176.4953,9.9314,9.9224,40.0]
[1672576119803,136.4953,9.9314,9.9226,302.3]
[1672576120011,22.8749,9.9313,9.9227,417.96]
[1672576120730,22.8749,9.9312,9.9228,40.0]
[1672576120962,22.8749,9.9312,9.923,40.0]
[1672576121162,22.8749,9.9312,9.9231,75.66]
[1672576121373,22.8749,9.9312,9.9232,302.3]
[1672576121586,22.8749,9.9312,9.923,40.0]
[1672576121587,63.14839242,9.9316,9.9234,302.3]
[1672576121796,15.3,9.9388,9.9236,302.3]
[1672576122003,15.3,9.9388,9.9235,95.66]
[1672576122004,15.3,9.9388,9.9239,40.0]
[1672576122224,15.3,9.9388,9.9241,302.3]
[1672576122436,15.3,9.9388,9.9243,302.3]
[1672576122638,15.3,9.9388,9.9246,40.0]
[1672576122849,15.3,9.9388,9.9248,302.3]
[1672576123052,15.3,9.9388,9.925,302.3]
[1672576123268,15.3,9.9388,9.9252,302.3]
[1672576123477,15.3,9.9388,9.9254,302.3]
[1672576123693,15.3,9.9388,9.9256,302.3]
[1672576123906,40.0,9.9387,9.9259,40.0]
[1672576124102,15.31,9.9386,9.9261,302.3]
[1672576124308,15.31,9.9386,9.9263,302.3]
[1672576124526,15.31,9.9386,9.9265,342.3]
[1672576124856,15.31,9.9386,9.9268,40.0]
[1672576125073,15.31,9.9386,9.9271,40.0]
[1672576125270,15.31,9.9386,9.9273,302.3]
[1672576125467,15.31,9.9386,9.9276,40.0]
[1672576125674,15.31,9.9386,9.9277,397.93]
[1672576125894,15.31,9.9386,9.9278,40.0]
[1672576126227,15.31,9.9386,9.928,40.0]
[1672576126424,15.31,9.9386,9.9282,40.0]
[1672576126745,15.31,9.9386,9.9284,40.0]
[1672576126961,15.31,9.9386,9.9285,75.62]
[1672576127284,15.31,9.9386,9.9281,75.62]
[1672576127886,15.31,9.9386,9.9279,75.62]
[1672576128527,15.31,9.9386,9.9278,75.62]
[1672576128834,15.31,9.9386,9.9278,302.3]
[1672576129044,15.31,9.9386,9.9279,115.62]